bitfinex-derivatives/quotes_ETHF0:USTF0_20241004
["timestamp","ask_amount","ask_price","bid_price","bid_amount"]
[1728042726466,3.2078,2387.0,2386.9,0.41901]
[1728042726672,1.23658,2387.2,2387.1,0.41898]
[1728042726856,1.23658,2387.2,2387.0,0.8215]
[1728042726857,0.8176,2387.2,2387.0,0.8215]
[1728042727254,1.23657,2387.2,2387.1,0.41898]
[1728042728165,0.8176,2387.2,2387.1,0.41898]
[1728042728560,0.41895,2387.3,2387.2,0.41896]
[1728042728962,1.46982,2387.4,2387.0,0.8215]
[1728042729162,1.46982,2387.4,2387.1,0.41896]
[1728042729464,0.41895,2387.3,2387.2,0.41895]
[1728042729882,0.41895,2387.3,2387.0,0.8215]
[1728042729883,0.41897,2387.2,2387.1,0.41897]
[1728042730163,0.41895,2387.3,2387.0,0.8215]
[1728042730475,0.41895,2387.3,2387.2,0.41896]
[1728042730662,0.41895,2387.3,2387.0,0.8215]
[1728042730863,0.41895,2387.3,2387.1,0.41896]
[1728042731164,0.41896,2387.2,2387.1,0.41896]
[1728042731359,0.41895,2387.3,2387.2,0.41895]
[1728042731565,0.84143,2387.4,2387.1,3.27]
[1728042731762,0.84143,2387.4,2387.3,0.41894]
[1728042731967,3.6984,2387.5,2387.3,3.27]
[1728042732163,3.6984,2387.5,2387.4,0.81762]
[1728042732164,3.3078,2387.5,2387.4,0.81762]
[1728042732870,3.72671,2387.5,2387.4,0.81762]
[1728042733163,3.72671,2387.5,2387.4,0.3987]
[1728042733770,3.72671,2387.5,2387.4,0.81762]
[1728042734461,3.72671,2387.5,2387.4,0.3987]
[1728042734661,3.72671,2387.5,2387.4,0.81762]
[1728042734869,3.72671,2387.5,2387.4,0.3987]
[1728042735970,3.72671,2387.5,2387.4,0.81762]
[1728042736168,0.41894,2387.3,2387.2,0.81485]
[1728042736370,0.41894,2387.3,2387.2,0.81486]
[1728042736571,3.3078,2387.5,2387.2,1.9059]
[1728042736757,3.3078,2387.5,2387.4,1.92892]
[1728042737360,3.72671,2387.5,2387.3,1.51]
[1728042737582,0.41894,2387.3,2387.2,0.81484]
[1728042737867,0.41894,2387.3,2387.2,1.21274]
[1728042738067,0.41894,2387.3,2387.2,0.7938]
[1728042738260,0.41894,2387.3,2387.2,0.3979]
[1728042738462,0.41896,2387.2,2387.1,3.2078]
[1728042739175,0.41895,2387.3,2387.1,3.62676]
[1728042739561,0.786,2387.4,2387.1,4.7178]
[1728042739768,0.786,2387.4,2387.2,0.41895]
[1728042739963,3.72672,2387.5,2387.3,1.92894]
[1728042740174,3.72672,2387.5,2387.4,0.82292]
[1728042740175,3.72671,2387.5,2387.4,0.82292]
[1728042740372,3.72671,2387.5,2387.4,0.404]
[1728042740567,3.72671,2387.5,2387.4,0.7903]
[1728042740764,3.72671,2387.5,2387.4,2.71922]
[1728042741068,3.3078,2387.5,2387.4,2.71922]
[1728042741676,3.72671,2387.5,2387.4,2.71922]
[1728042742273,3.72671,2387.5,2387.4,1.20922]
[1728042742775,3.72671,2387.5,2387.4,0.7903]
[1728042743273,3.72671,2387.5,2387.4,0.404]
[1728042743675,3.3078,2387.5,2387.1,4.7178]
[1728042743872,0.41894,2387.3,2387.2,0.81125]
[1728042745069,0.41894,2387.4,2387.2,0.3923]
[1728042745475,0.41894,2387.4,2387.3,1.92894]
[1728042746278,0.41894,2387.4,2387.3,1.51]
[1728042746578,0.41894,2387.4,2387.3,1.92894]
[1728042746780,0.41894,2387.4,2387.3,1.51]
[1728042747778,1.14728,2387.5,2387.2,0.81125]
[1728042747975,0.41894,2387.3,2387.2,0.81125]
[1728042748875,0.41894,2387.3,2387.2,0.3923]
[1728042749080,0.41894,2387.3,2387.2,0.81126]
[1728042749969,0.41894,2387.3,2387.2,1.20206]
[1728042750280,0.41894,2387.3,2387.2,1.20205]
[1728042751679,0.41894,2387.3,2387.2,0.7831]
[1728042751883,0.41894,2387.3,2387.2,1.20206]
[1728042753780,0.41893,2387.4,2387.3,0.41893]
[1728042757082,1.14727,2387.5,2387.2,0.7831]
[1728042757385,0.41894,2387.3,2387.2,1.20206]
[1728042758781,0.41894,2387.3,2387.2,0.7831]
[1728042759388,0.41894,2387.3,2387.2,1.20206]
[1728042759981,0.41894,2387.3,2387.2,0.7831]
[1728042760196,0.41901,2386.9,2386.8,4.246]
[1728042760407,0.41903,2386.8,2386.7,0.8191]
[1728042760587,1.24183,2386.8,2386.7,0.8191]
[1728042762196,1.24183,2386.8,2386.7,1.23815]
[1728042762687,0.82933,2386.8,2386.7,1.23815]
[1728042762883,0.82933,2386.8,2386.7,0.8191]
[1728042773696,3.6261,2387.0,2386.7,4.0891]
[1728042773997,0.41903,2386.9,2386.8,0.41902]
[1728042774191,0.41903,2386.9,2386.8,0.82402]
[1728042774587,0.41903,2386.9,2386.8,0.405]
[1728042776099,0.41903,2386.9,2386.8,0.82403]
[1728042777100,0.41903,2386.9,2386.8,0.405]
[1728042777300,0.41903,2386.9,2386.8,0.82403]
[1728042777790,0.419,2387.0,2386.9,0.41899]
[1728042778093,0.419,2387.0,2386.9,3.68899]
[1728042779297,0.41899,2387.1,2386.9,3.27]
[1728042779495,1.86079,2387.3,2386.9,3.27]
[1728042779701,1.04741,2387.2,2387.0,0.4103]
[1728042779998,1.86079,2387.3,2387.0,0.4103]
[1728042780201,0.41898,2387.1,2387.0,0.4103]
[1728042782199,0.41898,2387.1,2386.9,0.3996]
[1728042782413,0.81979,2387.0,2386.9,0.3996]
[1728042783807,2.32979,2387.0,2386.9,0.3996]
[1728042784303,0.41901,2386.9,2386.8,0.409]
[1728042784498,0.4094,2386.9,2386.7,0.389]
[1728042784697,0.41903,2386.8,2386.7,0.389]
[1728042788706,0.41903,2386.8,2386.7,0.80805]
[1728042788897,0.41903,2386.8,2386.7,0.389]
[1728042792712,3.62683,2386.8,2386.7,0.389]
[1728042793114,4.01523,2386.8,2386.7,0.389]
[1728042793814,0.80743,2386.8,2386.7,0.389]
[1728042794013,0.41906,2386.7,2386.5,1.21217]
[1728042794212,0.3944,2386.7,2386.5,1.60627]
[1728042794410,0.41906,2386.6,2386.5,1.60627]
[1728042796509,0.3944,2386.7,2386.5,1.60627]
[1728042796717,0.81346,2386.7,2386.5,1.60627]
[1728042797213,0.81346,2386.7,2386.6,0.41906]
[1728042797618,0.41906,2386.7,2386.6,0.41906]
[1728042805720,0.80745,2386.8,2386.7,0.41905]
[1728042805918,0.41906,2386.7,2386.6,0.41906]
[1728042830441,0.3884,2386.8,2386.5,1.1872]
[1728042830739,0.80745,2386.8,2386.7,0.41905]
[1728042837645,0.41905,2386.8,2386.7,0.41905]
[1728042846249,3.2078,2387.0,2386.7,1.51]
[1728042846452,3.2078,2387.0,2386.9,1.92901]
[1728042846657,0.8096,2387.1,2387.0,0.41899]
[1728042846658,0.41899,2387.1,2387.0,0.41899]
[1728042846853,0.41899,2387.1,2387.0,1.92899]
[1728042847352,3.2078,2387.3,2387.0,1.92899]
[1728042847353,3.2078,2387.3,2387.0,1.51]
[1728042847657,3.2078,2387.3,2387.2,1.51]
[1728042847658,3.62674,2387.3,2387.2,1.51]
[1728042847855,3.62674,2387.3,2387.2,1.92896]
[1728042848053,3.62674,2387.3,2387.2,0.84306]
[1728042850454,3.62674,2387.3,2387.2,2.35306]
[1728042851465,0.1,2387.5,2387.4,0.41892]
[1728042854066,0.1,2387.5,2387.4,4.60772]
[1728042856269,0.51891,2387.5,2387.4,4.60772]
[1728042856962,0.51891,2387.5,2387.4,0.41892]
[1728042861864,1.61,2387.5,2387.2,0.4241]
[1728042862067,1.61,2387.5,2387.1,0.8102]
[1728042862068,0.41896,2387.2,2387.1,0.8102]
[1728042862265,1.51,2387.3,2387.0,0.3888]
[1728042862466,0.82198,2387.1,2387.0,0.80778]
[1728042862672,0.82198,2387.1,2387.0,1.21868]
[1728042863775,1.14731,2387.5,2387.0,2.3097]
[1728042863977,0.41895,2387.3,2387.1,1.51]
[1728042864176,0.41898,2387.2,2387.1,1.92897]
[1728042872778,0.41898,2387.2,2387.1,1.51]
[1728042874182,0.41898,2387.2,2387.1,1.92898]
[1728042874684,0.41898,2387.2,2387.1,1.51]
[1728042874981,0.81928,2387.2,2387.1,1.51]
[1728042876087,0.41898,2387.1,2387.0,0.7997]
[1728042876279,0.81988,2387.1,2387.0,1.21869]
[1728042883690,0.41898,2387.1,2387.0,1.21869]
[1728042884387,0.41896,2387.3,2387.2,0.41894]
[1728042884790,1.1473,2387.5,2387.1,1.51]
[1728042884992,0.41893,2387.4,2387.3,0.41892]
[1728042885397,0.41893,2387.4,2387.3,0.82402]
[1728042885998,0.41893,2387.4,2387.3,2.33402]
[1728042886405,0.41893,2387.4,2387.3,1.51]
[1728042886708,0.41894,2387.3,2387.2,0.82345]
[1728042886997,0.84584,2387.3,2387.2,0.82345]
[1728042889499,0.41894,2387.3,2387.2,0.82345]
[1728042895412,0.41894,2387.3,2387.2,0.4045]
[1728042895712,0.41896,2387.2,2387.1,2.33407]
[1728042895918,0.84776,2387.2,2387.1,2.33407]
[1728042897310,0.84776,2387.2,2387.1,1.9151]
[1728042897705,0.41898,2387.1,2387.0,1.9209]
[1728042898014,0.41898,2387.1,2387.0,2.33989]
[1728042898818,0.41898,2387.1,2387.0,1.9209]
[1728042899414,0.41898,2387.1,2387.0,2.33989]
[1728042900414,0.41898,2387.1,2387.0,1.9209]
[1728042900918,0.41898,2387.1,2387.0,2.33989]
[1728042905411,0.41898,2387.1,2387.0,0.4109]
[1728042905716,0.41898,2387.1,2387.0,0.82989]
[1728042907322,0.41898,2387.1,2387.0,0.4109]
[1728042907523,0.41898,2387.1,2387.0,0.82989]
[1728042908317,0.41898,2387.1,2387.0,0.4109]
[1728042909028,0.41898,2387.1,2387.0,0.82989]
[1728042913632,0.41898,2387.1,2387.0,0.4109]
[1728042914533,0.41898,2387.1,2387.0,0.82989]
[1728042914725,0.41898,2387.1,2387.0,0.4109]
[1728042914925,0.41903,2386.8,2386.7,0.51704]
[1728042915132,0.41903,2386.8,2386.7,1.92904]
[1728042921532,0.41903,2386.8,2386.7,1.51]
[1728042921738,0.41903,2386.8,2386.7,1.92905]
[1728042922838,0.41903,2386.8,2386.7,0.41905]
[1728042923142,0.41903,2386.8,2386.7,1.92905]
[1728042928139,3.2078,2387.0,2386.7,1.92905]
[1728042928140,3.2078,2387.0,2386.7,1.51]
[1728042928349,0.41897,2387.2,2387.1,0.41898]
[1728042928549,0.41897,2387.2,2387.1,1.92898]
[1728042929951,0.41897,2387.2,2387.1,0.41898]
[1728042930151,0.41897,2387.2,2387.1,1.92898]
[1728042934641,0.41898,2387.1,2387.0,0.4199]
[1728042934848,2.31538,2387.1,2387.0,0.4199]
[1728042936236,6.086,2387.1,2386.7,0.81464]
[1728042936447,6.086,2387.1,2386.7,1.61474]
[1728042936448,0.41903,2386.8,2386.7,1.61474]
[1728042937541,0.41903,2386.8,2386.7,0.8001]
[1728042937745,0.83693,2386.8,2386.7,0.8001]
[1728042939348,0.4191,2386.4,2386.3,0.098]
[1728042939553,0.41912,2386.3,2386.2,0.81663]
[1728042939752,0.41911,2386.4,2386.3,0.41911]
[1728042939962,0.4261,2386.5,2386.3,1.51]
[1728042940155,1.87724,2386.7,2386.4,1.51]
[1728042940353,0.41908,2386.6,2386.5,0.84117]
[1728042940951,1.87724,2386.7,2386.2,0.3975]
[1728042941150,0.41912,2386.3,2386.2,1.9075]
[1728042941349,0.41913,2386.2,2386.1,0.3983]
[1728042941764,0.41913,2386.3,2386.2,0.41913]
[1728042941967,0.41913,2386.2,2386.1,0.3983]
[1728042942157,1.92913,2386.2,2386.1,0.3983]
[1728042943046,1.92913,2386.2,2385.7,4.148]
[1728042943047,2.55785,2386.2,2385.7,6.07721]
[1728042943250,0.4192,2385.8,2385.7,1.92921]
[1728042943453,1.51,2385.9,2385.6,0.816]
[1728042943757,0.41922,2385.7,2385.6,0.3983]
[1728042947165,0.41922,2385.7,2385.6,0.81754]
[1728042948263,0.41922,2385.7,2385.6,0.3983]
[1728042948953,0.41922,2385.7,2385.6,0.81754]
[1728042949155,1.9146,2385.8,2385.6,0.81754]
[1728042949463,1.92922,2385.7,2385.6,0.3983]
[1728042949969,0.41927,2385.4,2385.3,0.80769]
[1728042950258,0.41927,2385.4,2385.3,1.22609]
[1728042950558,1.92926,2385.5,2385.4,0.41927]
[1728042951163,1.92926,2385.5,2385.3,0.8068]
[1728042951468,0.4193,2385.3,2385.2,0.4193]
[1728042951658,0.4193,2385.3,2385.2,1.2292]
[1728042952456,0.4193,2385.3,2385.2,0.8099]
[1728042953151,0.4193,2385.3,2384.9,1.51]
[1728042953152,0.41934,2385.1,2384.9,1.51]
[1728042953357,0.41934,2385.1,2385.0,0.81695]
[1728042953556,0.41934,2385.1,2385.0,0.3976]
[1728042954066,0.41934,2385.1,2385.0,0.81695]
[1728042954759,0.41934,2385.1,2385.0,0.3976]
[1728042956863,4.64302,2385.4,2385.0,1.9076]
[1728042957169,0.41932,2385.2,2385.1,1.51]
[1728042957360,0.41932,2385.2,2385.1,1.92932]
[1728042958061,0.41932,2385.2,2385.1,1.908]
[1728042958492,6.75111,2385.2,2384.7,0.51739]
[1728042958688,0.41936,2384.9,2384.8,0.398]
[1728042958972,0.41938,2384.8,2384.7,0.4003]
[1728042959271,0.41941,2384.7,2384.6,0.41941]
[1728042960565,4.25621,2385.0,2384.5,2.3356]
[1728042960864,0.41936,2385.0,2384.9,0.41935]
[1728042961262,0.41936,2385.0,2384.9,0.4133]
[1728042961659,0.41936,2385.0,2384.9,0.83266]
[1728042961970,0.41936,2385.0,2384.9,0.4133]
[1728042962170,0.41936,2385.0,2384.9,0.83266]
[1728042962663,0.41934,2385.1,2385.0,0.41934]
[1728042962871,0.41934,2385.1,2385.0,0.81044]
[1728042963057,0.41934,2385.1,2385.0,0.3911]
[1728042963460,0.41934,2385.1,2385.0,0.81045]
[1728042965767,1.44859,2385.2,2385.1,0.41932]
[1728042965768,0.41932,2385.2,2385.1,0.41932]
[1728042970078,0.41927,2385.5,2385.4,0.41926]
[1728042970372,0.41925,2385.6,2385.5,0.41924]
[1728042970578,3.2078,2385.9,2385.5,8.2569]
[1728042970776,0.41919,2385.9,2385.8,0.41918]
[1728042971775,0.41923,2385.8,2385.7,0.41921]
[1728042975572,0.827,2385.9,2385.8,0.4192]
[1728042975977,0.4192,2385.9,2385.8,0.4192]
[1728042976187,0.41918,2386.0,2385.6,1.43431]
[1728042976486,0.41918,2386.0,2385.9,0.41919]
[1728042976987,0.41918,2386.1,2386.0,0.41916]
[1728042977581,0.41918,2386.1,2386.0,0.82586]
[1728042977982,0.41915,2386.2,2386.1,0.41914]
[1728042978586,0.41915,2386.1,2386.0,0.82586]
[1728042980379,1.04781,2386.3,2386.0,0.4067]
[1728042980581,4.0787,2386.4,2386.1,0.41914]
[1728042980582,0.41914,2386.2,2386.1,0.41914]
[1728042981184,3.27,2386.2,2386.0,0.4067]
[1728042981391,0.41917,2386.0,2385.9,0.83207]
[1728042982192,0.41916,2386.1,2386.0,0.41916]
[1728042982990,0.41917,2386.0,2385.9,0.83207]
[1728042983680,0.82837,2386.1,2386.0,0.41917]
[1728042984594,0.4092,2386.1,2385.9,0.4129]
[1728042984795,0.41917,2386.0,2385.9,0.83207]
[1728042989509,1.92917,2386.0,2385.9,0.83207]
[1728042989703,5.7012,2386.0,2385.6,0.098]
[1728042989909,1.9292,2385.9,2385.8,0.41919]
[1728042990819,0.41927,2385.4,2385.3,0.098]
[1728042991015,1.51,2385.4,2385.1,1.2361]
[1728042991405,1.92928,2385.4,2385.1,1.2361]
[1728042991602,0.41928,2385.4,2385.2,0.4193]
[1728042991804,0.4127,2385.5,2385.1,2.28442]
[1728042992003,3.62705,2385.6,2385.2,4.31828]
[1728042992220,3.62705,2385.6,2385.5,0.41926]
[1728042992606,3.2078,2385.6,2385.5,0.41926]
[1728042993710,3.62704,2385.6,2385.5,1.23616]
[1728042994201,0.41924,2385.6,2385.5,1.23616]
[1728042996810,3.68924,2385.6,2385.5,0.3902]
[1728042997716,3.68924,2385.6,2385.3,0.4235]
[1728042997717,0.41927,2385.4,2385.3,0.84278]
[1728042998107,0.41927,2385.4,2385.3,0.42348]
[1728042998702,0.41927,2385.4,2385.3,0.0042]
[1728042999112,0.41927,2385.4,2385.3,0.42349]
[1728043002817,0.41927,2385.5,2385.4,0.41927]
[1728043003005,4.25594,2385.6,2385.2,0.4093]
[1728043003214,0.41927,2385.5,2385.4,0.41926]
[1728043004811,3.27,2385.5,2385.1,0.8112]
[1728043005117,0.41931,2385.2,2385.1,1.23051]
[1728043005916,0.8166,2385.4,2385.1,0.8112]
[1728043006227,0.41931,2385.3,2385.2,0.4193]
[1728043007417,0.41931,2385.3,2385.1,0.8112]
[1728043007826,0.41931,2385.3,2385.2,0.4193]
[1728043008322,0.83759,2385.4,2385.3,0.41929]
[1728043010819,3.62705,2385.6,2385.5,0.41926]
[1728043011426,3.62705,2385.6,2385.5,0.81926]
[1728043012227,3.62705,2385.6,2385.5,0.4]
[1728043012424,3.62705,2385.6,2385.5,0.81926]
[1728043013528,5.13705,2385.6,2385.5,0.39996]
[1728043015028,5.13705,2385.6,2385.4,0.82836]
[1728043015029,0.41926,2385.5,2385.4,0.82836]
[1728043015433,5.13705,2385.6,2385.5,0.41926]
[1728043018536,4.7178,2385.6,2385.5,0.41926]
[1728043018733,5.13704,2385.6,2385.5,0.41926]
[1728043019027,3.2078,2385.6,2385.5,0.41926]
[1728043019228,0.506,2386.0,2385.5,1.51]
[1728043019438,0.41922,2385.8,2385.7,0.41921]
[1728043020438,0.84101,2385.9,2385.8,0.4192]
[1728043021324,0.84101,2385.9,2385.8,0.8368]
[1728043024628,0.84101,2385.9,2385.8,0.4176]
[1728043024835,0.84101,2385.9,2385.7,0.83192]
[1728043024836,0.4192,2385.8,2385.7,0.83192]
[1728043025036,1.9292,2385.8,2385.7,0.83192]
[1728043025640,1.9292,2385.8,2385.7,0.4127]
[1728043025840,1.9292,2385.8,2385.7,0.83192]
[1728043026244,1.9292,2385.8,2385.7,0.4127]
[1728043026437,1.9292,2385.8,2385.7,0.83192]
[1728043026836,1.9292,2385.8,2385.7,0.4127]
[1728043027241,1.9292,2385.8,2385.7,0.83192]
[1728043027636,2.35101,2385.9,2385.8,0.4192]
[1728043027840,2.35101,2385.9,2385.8,0.8446]
[1728043031738,2.35101,2385.9,2385.8,0.4254]
[1728043033758,0.4192,2385.8,2385.7,0.4127]
[1728043034044,1.9292,2385.8,2385.7,0.4127]
[1728043035858,0.41916,2386.1,2385.7,6.1139]
[1728043036049,0.41915,2386.2,2386.0,0.41917]
[1728043036247,0.41915,2386.2,2386.1,1.22665]
[1728043036751,0.41915,2386.2,2386.1,0.8075]
[1728043050660,3.62693,2386.3,2386.1,1.22664]
[1728043050855,0.41909,2386.5,2386.1,2.3175]
[1728043051063,0.41909,2386.5,2386.4,0.4191]
[1728043051354,0.41904,2386.8,2386.7,0.41903]
[1728043051562,0.41904,2386.8,2386.7,1.92903]
[1728043052263,0.8047,2387.0,2386.7,1.51]
[1728043052458,0.41902,2386.9,2386.8,1.92901]
[1728043052857,0.3965,2387.0,2386.8,1.92901]
[1728043052858,0.419,2387.0,2386.9,0.41901]
[1728043053257,0.419,2387.0,2386.9,0.83741]
[1728043053462,1.44911,2387.2,2386.9,0.4184]
[1728043053657,0.41899,2387.1,2387.0,0.41899]
[1728043054256,0.41899,2387.0,2386.9,0.8374]
[1728043055964,0.41899,2387.0,2386.9,0.4184]
[1728043056366,0.41899,2387.0,2386.9,0.83741]
[1728043057859,0.41899,2387.0,2386.9,0.4184]
[1728043059057,0.41899,2387.0,2386.9,0.83741]
[1728043059656,0.41899,2387.0,2386.9,0.4184]
[1728043060359,0.41903,2386.8,2386.7,0.84094]
[1728043065272,0.41903,2386.8,2386.7,2.35094]
[1728043066067,0.4276,2386.9,2386.7,1.9319]
[1728043066363,0.41902,2386.9,2386.8,1.92903]
[1728043068173,0.41901,2387.0,2386.9,0.41899]
[1728043068466,0.41901,2387.0,2386.9,0.82539]
[1728043071776,0.41901,2387.0,2386.9,2.33539]
[1728043076479,0.41901,2387.0,2386.9,0.82539]
[1728043078273,0.41903,2386.8,2386.7,4.04874]
[1728043078675,0.80793,2386.8,2386.7,4.04874]
[1728043080577,0.098,2387.4,2386.7,9.3293]
[1728043080787,1.21342,2387.4,2387.3,1.92894]
[1728043080974,0.1,2387.5,2387.3,1.51]
[1728043081181,0.51891,2387.5,2387.4,0.41892]
[1728043081384,0.1,2387.5,2387.4,0.41892]
[1728043084280,0.1,2387.5,2387.4,4.60772]
[1728043085280,0.1,2387.5,2387.4,10.60772]
[1728043085685,0.1,2387.5,2387.4,13.87772]
[1728043085869,0.1,2387.5,2387.4,7.87772]
[1728043090079,0.1,2387.5,2387.4,13.87772]
[1728043090484,0.1,2387.5,2387.4,7.87772]
[1728043090986,0.1,2387.5,2387.4,3.68892]
[1728043091195,0.1,2387.5,2387.4,0.41892]
[1728043091488,0.1,2387.5,2387.1,0.8372]
[1728043091679,0.81983,2387.4,2387.3,0.41892]
[1728043094281,0.81982,2387.4,2387.3,0.41892]
[1728043094486,0.4009,2387.4,2387.3,0.41892]
[1728043094787,0.81982,2387.4,2387.3,0.41892]
[1728043100693,0.1,2387.5,2387.4,0.41892]
[1728043100906,0.1,2387.5,2387.4,0.81982]
[1728043101097,0.1,2387.5,2387.4,1.22122]
[1728043105014,0.51891,2387.5,2387.4,0.81982]
[1728043105309,0.1,2387.5,2387.2,3.6751]
[1728043105609,0.41894,2387.4,2387.3,0.41892]
[1728043109309,0.1,2387.5,2387.4,0.41892]
[1728043110213,0.1,2387.5,2387.4,1.20572]
[1728043113016,0.51891,2387.5,2387.4,0.41892]
[1728043114013,0.1,2387.5,2387.4,0.41892]
[1728043114520,0.1,2387.5,2387.4,1.21812]
[1728043118127,0.51891,2387.5,2387.4,0.41892]
[1728043118413,0.41892,2387.4,2387.3,3.62673]
[1728043118615,0.81352,2387.4,2387.3,3.62673]
[1728043119014,0.3946,2387.4,2387.3,3.62673]
[1728043119615,0.51891,2387.5,2387.3,3.2078]
[1728043119824,0.1,2387.5,2387.4,0.41892]
[1728043121021,0.51891,2387.5,2387.4,0.41892]
[1728043121622,0.51891,2387.5,2387.4,1.92892]
[1728043122523,0.51891,2387.5,2387.4,0.41892]
[1728043125810,0.1,2387.5,2387.4,0.41892]
[1728043130526,0.51891,2387.5,2387.4,0.41892]
[1728043130726,0.1,2387.5,2387.4,0.41892]
[1728043131024,0.51891,2387.5,2387.4,0.41892]
[1728043132029,0.1,2387.5,2387.4,0.41892]
[1728043132630,0.51891,2387.5,2387.4,0.41892]
[1728043132929,0.41894,2387.4,2387.2,2.2972]
[1728043133130,0.41894,2387.3,2387.2,2.71614]
[1728043133427,1.22564,2387.4,2387.3,0.41894]
[1728043133727,0.41894,2387.3,2387.2,2.71615]
[1728043134035,1.22564,2387.4,2387.3,0.41894]
[1728043136433,0.8067,2387.4,2387.2,2.2972]
[1728043136630,0.8067,2387.4,2387.3,0.41894]
[1728043136631,1.22564,2387.4,2387.3,0.41894]
[1728043137334,1.22564,2387.4,2387.3,1.92894]
[1728043138626,0.417,2387.4,2387.3,1.92894]
[1728043138825,0.1,2387.5,2387.4,0.41892]
[1728043139030,0.1,2387.5,2387.4,1.92892]
[1728043140533,0.1,2387.5,2387.4,1.51]
[1728043140534,0.51891,2387.5,2387.4,1.51]
[1728043140834,0.41892,2387.4,2387.3,1.51]
[1728043141027,0.82862,2387.4,2387.3,1.92894]
[1728043141223,0.82862,2387.4,2387.1,0.41897]
[1728043141224,0.41894,2387.3,2387.1,0.41897]
[1728043141560,0.424,2387.3,2387.2,1.92896]
[1728043141732,0.82863,2387.4,2387.3,0.41894]
[1728043141921,0.82863,2387.4,2387.3,1.92894]
[1728043142633,0.4097,2387.4,2387.1,1.51]
[1728043142832,0.41895,2387.3,2387.2,0.41895]
[1728043146929,0.41895,2387.3,2387.2,1.92895]
[1728043148132,0.41895,2387.3,2387.2,1.51]
[1728043150827,0.41895,2387.3,2387.2,1.92896]
[1728043151024,0.41895,2387.3,2387.2,1.51]
[1728043151638,0.41895,2387.3,2387.2,1.92896]
[1728043154530,0.41895,2387.3,2387.2,1.51]
[1728043156440,0.41895,2387.3,2387.2,1.92896]
[1728043158633,0.41895,2387.3,2387.2,1.51]
[1728043172147,0.41895,2387.3,2387.2,1.92896]
[1728043173055,0.41895,2387.3,2387.2,1.51]
[1728043174655,0.41895,2387.3,2387.2,1.92896]
[1728043175553,0.41893,2387.4,2387.3,0.41892]
[1728043175756,0.41893,2387.4,2387.3,2.72822]
[1728043181754,0.41893,2387.4,2387.3,1.21822]
[1728043187063,0.51892,2387.5,2387.4,0.41892]
[1728043187570,0.94582,2387.5,2387.4,0.41892]
[1728043191161,0.94582,2387.5,2387.3,1.2068]
[1728043191367,0.94582,2387.5,2387.4,0.41892]
[1728043192468,0.5269,2387.5,2387.4,0.41892]
[1728043192669,0.51891,2387.5,2387.4,0.41892]
[1728043193664,0.51891,2387.5,2387.4,1.92892]
[1728043195967,0.51891,2387.5,2387.4,0.41892]
[1728043196171,0.91541,2387.5,2387.4,0.41892]
[1728043198773,0.41892,2387.4,2387.3,2.74083]
[1728043198977,0.80812,2387.4,2387.3,2.74083]
[1728043200270,0.80812,2387.4,2387.3,2.33333]
[1728043200574,0.41892,2387.4,2387.3,2.33334]
[1728043200870,0.51892,2387.5,2387.4,0.41892]
[1728043201268,0.51892,2387.5,2387.4,0.82712]
[1728043202380,0.1,2387.5,2387.4,0.82712]
[1728043202874,0.1,2387.5,2387.4,2.33712]
[1728043203073,0.51891,2387.5,2387.4,2.33712]
[1728043203276,0.1,2387.5,2387.4,2.33712]
[1728043203478,0.51891,2387.5,2387.4,2.33712]
[1728043203675,0.1,2387.5,2387.4,2.33712]
[1728043204074,0.51891,2387.5,2387.4,2.33712]
[1728043204278,0.1,2387.5,2387.4,2.33712]
[1728043204781,0.51891,2387.5,2387.4,2.33712]
[1728043205773,0.1,2387.5,2387.4,2.33712]
[1728043206674,0.51891,2387.5,2387.4,2.33712]
[1728043207975,0.1,2387.5,2387.4,2.33712]
[1728043208181,0.1,2387.5,2387.4,5.54492]
[1728043208881,0.51682,2388.0,2387.9,0.41884]
[1728043209077,0.41882,2388.0,2387.9,1.92884]
[1728043210089,0.41882,2388.1,2388.0,0.4188]
[1728043210576,0.41882,2388.1,2388.0,0.8214]
[1728043212179,0.41882,2388.1,2388.0,1.2148]
[1728043213680,0.4188,2388.1,2388.0,4.42261]
[1728043213875,0.4188,2388.1,2388.0,1.21481]
[1728043216285,0.4188,2388.2,2388.1,0.41878]
[1728043216478,0.4188,2388.2,2388.1,1.92878]
[1728043217176,0.4188,2388.2,2388.1,1.51]
[1728043217576,0.4188,2388.2,2388.1,1.9288]
[1728043217777,0.4188,2388.2,2388.1,1.51]
[1728043218481,0.4188,2388.2,2388.1,1.9288]
[1728043218783,0.4188,2388.2,2388.1,1.51]
[1728043219178,0.4188,2388.2,2388.1,1.9288]
[1728043219789,0.4188,2388.2,2388.0,2.306]
[1728043219987,0.4188,2388.1,2388.0,2.72482]
[1728043227891,0.4188,2388.1,2388.0,0.4026]
[1728043228099,0.41882,2388.0,2387.9,1.51]
[1728043228391,0.82432,2388.0,2387.9,1.51]
[1728043234693,0.41885,2387.8,2387.7,3.2078]
[1728043235193,0.41889,2387.6,2387.5,1.51]
[1728043236292,0.41892,2387.4,2387.3,0.4098]
[1728043236698,0.81572,2387.4,2387.3,0.4098]
[1728043237700,0.41892,2387.4,2387.3,0.82874]